Cogmind - Beta 14 @@@ ROGUE MODE // 2024.11.04 @ 22:29:56 Player: gorb Result: Destroyed by L-41 Fighter with Axe Performance ------------- Evolutions (1) 500 Regions Visited (5) 1000 Robots Destroyed (20) 100 Value Destroyed (551) 551 Prototype IDs (2) 40 Alien Tech Used (0) 0 Bonus (840) 840 TOTAL SCORE: 3031 Bonus ------- Pacifist 200 Follower Combat Kills 40 Met Imprinter 300 Was Imprinted 300 Cogmind --------- Core Integrity 0/400 Matter 156/300 Energy 45/100 System Corruption 0% Temperature Cool (18) Movement Core (550) Ox10 Location -6/Proximity Caves Parts ------- > --- POWER (1) -------- (None) > --- PROPULSION (2) --- (None) > --- UTILITY (3) ------ Large Storage Unit Hacking Drone Bay (1/1) > --- WEAPON (3) ------- Datajack RU-N14's Throwing Claymores Makeshift Axe > --- INVENTORY (15) --- Aluminum Leg Aluminum Leg Flexi-carbon Leg Large Battery (200) Machine Analyzer ECM Suite ECM Suite Improved Propulsion Shielding Reactive Plating Hacking Suite Advanced Assault Cannon Datajack Makeshift Axe Peak State ------------ > --- POWER ------------ Improved Ion Engine > --- PROPULSION ------- Wheel Compact Wheel > --- UTILITY ---------- Large Storage Unit Light Armor Plating Hacking Drone Bay > --- WEAPON ----------- RU-N14's Throwing Claymores Makeshift Axe Makeshift Axe > --- INVENTORY -------- Aluminum Leg Aluminum Leg Large Battery Machine Analyzer ECM Suite ECM Suite Improved Propulsion Shielding Reactive Plating Hacking Suite Advanced Assault Cannon Datajack Datajack RU-N14's Throwing Claymores [Rating: 33] Favorites ----------- Power Improved Ion Engine Engine Improved Ion Engine Propulsion Wheel Leg Aluminum Leg Wheel Wheel Utility Large Storage Unit Device Hacking Drone Bay Storage Large Storage Unit Protection Light Armor Plating Weapon Datajack Energy Gun EM Pulse Gun Ballistic Cannon Light Cannon Launcher Grenade Launcher Special Weapon RU-N14's Throwing Claymores Slashing Weapon Makeshift Axe Special Melee Weapon Datajack Build | -11 -10 -9 -9 -7 -6 ------- Run | Yrd Mat Mat Min Zio Pro Slots Evolved 2 | . . 2 . . . Power . | . . . . . . Propulsion . | . . . . . . Utility 1 | . . 1 . . . Weapon 1 | . . 1 . . . Parts Attached 41 | 8 2 19 1 8 3 Power 4 | 1 . 3 . . . Engine 4 | 1 . 3 . . . Core . | . . . . . . Reactor . | . . . . . . Propulsion 10 | 4 . 4 . 2 . Treads . | . . . . . . Leg 4 | 2 . 2 . . . Wheel 6 | 2 . 2 . 2 . Hover . | . . . . . . Flight . | . . . . . . Utility 11 | 1 2 6 . 2 . Device 6 | . 1 4 . 1 . Storage 3 | 1 1 1 . . . Processor . | . . . . . . Hackware . | . . . . . . Protection 2 | . . 1 . 1 . Artifact . | . . . . . . Weapon 16 | 2 . 6 1 4 3 Energy Gun 5 | 2 . 3 . . . Energy Cannon . | . . . . . . Ballistic Gun . | . . . . . . Ballistic Cannon 2 | . . 1 . . 1 Launcher 1 | . . 1 . . . Special Weapon 3 | . . . . 2 1 Impact Weapon . | . . . . . . Slashing Weapon 2 | . . . . 2 . Piercing Weapon . | . . . . . . Special Melee Weapon 3 | . . 1 1 . 1 Unidentified Prototypes 2 | . . . . 2 . Parts Lost 16 | . . 12 . . 4 Power 2 | . . 1 . . 1 Propulsion 5 | . . 3 . . 2 Utility 3 | . . 2 . . 1 Weapon 6 | . . 6 . . . Highest Loss Streak 10 | . . 10 . . 2 To Critical Strikes . | . . . . . . Average Slot Usage (%) 91 | . 95 82 77 95 73 Engine 10 | . 14 8 11 11 2 Leg 5 | . . 4 22 5 . Wheel 16 | . 28 15 . 16 22 Device 4 | . 10 15 . 2 11 Storage 11 | . 14 11 11 11 11 Protection 13 | . . 2 11 16 2 Energy Gun 2 | . 28 13 . . . Special Weapon 3 | . . . . 3 2 Slashing Weapon 10 | . . . . 12 21 Special Melee Weapon 11 | . . 2 22 14 . Peak Build Rating 33 | 6 7 10 8 33 33 Average Rating 17 | 3 6 8 8 19 25 On Entrance 10 | . 6 7 7 8 33 Naked Turns . | . . . . . . Heaviest Build 51 | 14 31 36 32 51 45 Greatest Support 26 | 20 20 20 20 26 26 Greatest Overweight (x) 2 | . 1 2 1 1 1 Average Overweight (x) . | . . 1 1 1 1 Largest Inventory Capacity 15 | 8 15 15 15 15 15 Average Capacity 14 | 5 10 15 15 15 15 Most Carried 14 | 5 8 12 6 13 14 Average Carried 9 | 3 6 8 6 9 13 Final Capacity 15 | 8 15 15 15 15 15 Final Carried 13 | 4 7 7 6 13 13 Class Distribution -------------------- 93% | Mutant 3% | Skirmisher 3% | Gunner Dominant Class ---------------- Mutant | -10/Materials Mutant | -9/Materials Mutant | -9/Mines Mutant | -7/Zion Mutant | -6/Proximity Caves Resources | -11 -10 -9 -9 -7 -6 ----------- Run | Yrd Mat Mat Min Zio Pro Matter Collected 498 | 179 . 69 . 153 97 Remotely . | . . . . . . Salvage Created 558 | . . 425 . . 133 Parts 38 | . . 32 . . 6 Haulers Intercepted . | . . . . . . Recyclers Shooed . | . . . . . . Parts Field Recycled . | . . . . . . Retrieved Matter . | . . . . . . Parts Self-Destructed 4 | . . . . . 4 Prevented 2 | . . . . . 2 Kills | -11 -10 -9 -9 -7 -6 ------- Run | Yrd Mat Mat Min Zio Pro Combat Hostiles Destroyed 14 | . . 11 . . 3 Guns 2 | . . 2 . . . Cannons 4 | . . 3 . . 1 AOE 8 | . . 6 . . 2 Classes Destroyed 8 | . . 7 . . 1 Builder 3 | . . 3 . . . Recycler 2 | . . 2 . . . Operator 1 | . . 1 . . . Swarmer 4 | . . 4 . . . Grunt 5 | . . 5 . . . Duelist 1 | . . 1 . . . Sentry 2 | . . 1 . . 1 Hunter 2 | . . . . . 2 Best Kill Streak 10 | . . 10 . . 2 Combat Bots Only 6 | . . 6 . . 2 Max Kills in Single Turn 4 | . . 4 . . 1 Gunslinging . | . . . . . . Exploded 2 | . . 2 . . 1 Melee . | . . . . . . Uniques/NPCs Destroyed . | . . . . . . Combat | -11 -10 -9 -9 -7 -6 -------- Run | Yrd Mat Mat Min Zio Pro Hostile Shots Fired 136 | . . 100 . . 36 Missed 38 | . . 26 . . 12 Damage Taken 1469 | . . 1102 . . 367 Core 408 | . . 279 . . 129 Absorbed by Shields . | . . . . . . Core Remaining (%) 100 | 100 100 . . . . Volleys Fired 35 | . . 28 . . 7 Largest 3 | . . 3 . . 1 Hottest 110 | . . 110 . . 48 Shots Fired 44 | . . 37 . . 7 Gun 21 | . . 21 . . . Cannon 12 | . . 10 . . 2 Launcher 6 | . . 6 . . . Special 5 | . . . . . 5 Kinetic 12 | . . 10 . . 2 Thermal 9 | . . 9 . . . Explosive 11 | . . 6 . . 5 Electromagnetic 12 | . . 12 . . . Robot Hit Streak 5 | . . 5 . . 2 Robot Miss Streak 4 | . . 4 . . 2 Penetration Max . | . . . . . . Secondary Targets . | . . . . . . Shots Hit Robots 22 | . . 20 . . 2 Core Hits 30 | . . 24 . . 6 Critical Kills . | . . . . . . Critical Parts Destroyed . | . . . . . . Critical Strikes 2 | . . 1 . . 1 Blast 1 | . . 1 . . . Sever 1 | . . . . . 1 Melee Attacks . | . . . . . . Impact . | . . . . . . Slashing . | . . . . . . Piercing . | . . . . . . Sneak Attacks . | . . . . . . Combat Hostiles . | . . . . . . Follow-up Attacks . | . . . . . . Damage Inflicted 1153 | . . 799 . . 354 Guns 145 | . . 145 . . . Cannons 148 | . . 120 . . 28 Explosions 744 | . . 534 . . 210 Melee . | . . . . . . Ramming . | . . . . . . Kinetic 148 | . . 120 . . 28 Thermal 65 | . . 65 . . . Explosive 744 | . . 534 . . 210 Electromagnetic 80 | . . 80 . . . Impact . | . . . . . . Slashing 116 | . . . . . 116 Piercing . | . . . . . . Highest Corruption . | . . . . . . Average Corruption . | . . . . . . Corruption Purged . | . . . . . . Corruption Blocked . | . . . . . . Overload Shots . | . . . . . . Overflow Damage 25 | . . 16 . . 9 Projectiles 9 | . . . . . 9 Explosions 16 | . . 16 . . . Melee . | . . . . . . Knockbacks 1 | . . . . . 1 Impact . | . . . . . . Kinetic 1 | . . . . . 1 Secondary . | . . . . . . Self-Inflicted Damage 90 | . . 90 . . . Shots 3 | . . 3 . . . Rammed . | . . . . . . Targets Rammed . | . . . . . . Kicked . | . . . . . . Crushed . | . . . . . . Highest Temperature 45 | . . 45 . . 5 Average Temperature 20 | . . 21 . . 3 Received Heat Transfer 342 | . . 264 . . 78 Siege Activations . | . . . . . . Robots Corrupted . | . . . . . . Combat Hostiles . | . . . . . . Parts Fried . | . . . . . . Impact Corruptions . | . . . . . . Robots Melted . | . . . . . . Combat Hostiles . | . . . . . . Parts Melted . | . . . . . . Heat Transferred 150 | . . 150 . . . Parts Sabotaged . | . . . . . . Parts Stolen . | . . . . . . Parts Stripped . | . . . . . . Power Chain Reactions . | . . . . . . Alert | -11 -10 -9 -9 -7 -6 ------- Run | Yrd Mat Mat Min Zio Pro Peak Influence 302 | . 15 302 43 . . Initial 43 | . . 5 43 . . Average 72 | . 8 97 43 . . Maximum Alert Level 1 | . . 1 . . . Low Security (%) 84 | 100 100 76 100 . . Level 1 15 | . . 23 . . . Level 2 . | . . . . . . Level 3 . | . . . . . . Level 4 . | . . . . . . Level 5 . | . . . . . . High Security . | . . . . . . Max Security . | . . . . . . Squads Dispatched 4 | . . 3 . . 1 Investigation . | . . . . . . Extermination . | . . . . . . Reinforcement 3 | . . 3 . . . Assault 1 | . . . . . 1 Garrison . | . . . . . . Intercept . | . . . . . . Searches Triggered . | . . . . . . Construction Impeded . | . . . . . . Haulers Reinforced . | . . . . . . Active Scanning Responses . | . . . . . . Cargo Convoy Interrupts . | . . . . . . Stealth | -11 -10 -9 -9 -7 -6 --------- Run | Yrd Mat Mat Min Zio Pro Distress Signals 2 | . . 2 . . . Communications Jammed . | . . . . . . Distress Signals . | . . . . . . Times Spotted 32 | . . 22 . . 10 Peak Tracking Total 8 | . 2 8 . . 8 Tactical Retreats 2 | . . 2 . . . Traps | -11 -10 -9 -9 -7 -6 ------- Run | Yrd Mat Mat Min Zio Pro Traps Triggered . | . . . . . . Indirectly . | . . . . . . Trap Hack Attempts . | . . . . . . Triggered . | . . . . . . Disarmed . | . . . . . . Reprogrammed . | . . . . . . Reused . | . . . . . . Traps Extracted . | . . . . . . Installed . | . . . . . . Triggered . | . . . . . . Machines | -11 -10 -9 -9 -7 -6 ---------- Run | Yrd Mat Mat Min Zio Pro Machines Disabled 2 | . . 2 . . . Max in Single Turn 1 | . . 1 . . . Machines Repaired . | . . . . . . Machines Dismantled . | . . . . . . Machines Sabotaged . | . . . . . . Overloaded Fab Kills . | . . . . . . Hacking | -11 -10 -9 -9 -7 -6 --------- Run | Yrd Mat Mat Min Zio Pro Machines Accessed 1 | . 1 . . . . Terminals 1 | . 1 . . . . Fabricators . | . . . . . . Repair Stations . | . . . . . . Recycling Units . | . . . . . . Scanalyzers . | . . . . . . Garrison Access . | . . . . . . Total Hacks 1 | . 1 . . . . Successful 1 | . 1 . . . . Failed . | . . . . . . Catastrophic . | . . . . . . Database Lockouts . | . . . . . . Manual 8 | . . . . 8 . Terminals 1 | . 1 . . . . Fabricators . | . . . . . . Repair Stations . | . . . . . . Recycling Units . | . . . . . . Scanalyzers . | . . . . . . Garrison Access . | . . . . . . Terminal Hacks 1 | . 1 . . . . Zone Layout 1 | . 1 . . . . Fabricator Hacks . | . . . . . . Repair Station Hacks . | . . . . . . Recycling Unit Hacks . | . . . . . . Scanalyzer . | . . . . . . Garrison Access Hacks . | . . . . . . Unauthorized Hacks . | . . . . . . Terminals . | . . . . . . Fabricators . | . . . . . . Repair Stations . | . . . . . . Recycling Units . | . . . . . . Scanalyzers . | . . . . . . Garrison Access . | . . . . . . Data Cores Recovered . | . . . . . . Used . | . . . . . . Hacking Detections . | . . . . . . Full Trace Events . | . . . . . . Feedback Events . | . . . . . . Feedback Blocked . | . . . . . . Robot Schematics Acquired . | . . . . . . Robots Built . | . . . . . . Authchips . | . . . . . . Time . | . . . . . . Total Robot Build Rating . | . . . . . . Part Schematics Acquired 3 | . . . . 3 . Parts Built . | . . . . . . Authchips . | . . . . . . Time . | . . . . . . Total Part Build Rating . | . . . . . . Parts Repaired . | . . . . . . Time . | . . . . . . Parts Recycled . | . . . . . . Recycled Matter . | . . . . . . Retrieved Matter . | . . . . . . Retrieved Components . | . . . . . . Parts Scanalyzed . | . . . . . . Part Schematics Acquired . | . . . . . . Parts Damaged . | . . . . . . Bothacking | -11 -10 -9 -9 -7 -6 ------------ Run | Yrd Mat Mat Min Zio Pro Used RIF Installer . | . . . . . . Robots Hacked . | . . . . . . Non-combat . | . . . . . . Combat . | . . . . . . Robot Hacks Applied . | . . . . . . Relay Couplers Released . | . . . . . . Fabnet Peak Effective % . | . . . . . . Robots Rewired . | . . . . . . Allies Hacked . | . . . . . . Hacks Repelled . | . . . . . . Allies | -11 -10 -9 -9 -7 -6 -------- Run | Yrd Mat Mat Min Zio Pro Total Allies 4 | . . . . 4 . Largest Group 4 | . . . . 4 4 Highest-Rated Group 154 | . . . . 154 154 Highest-Rated Ally 41 | . . . . 41 41 Total Orders . | . . . . . . Ally Attacks 6 | . . . . . 6 Total Damage 202 | . . . . . 202 Kills 2 | . . . . . 2 Allies Corrupted . | . . . . . . Allies Melted . | . . . . . . Intel | -11 -10 -9 -9 -7 -6 ------- Run | Yrd Mat Mat Min Zio Pro Robot Analysis Total . | . . . . . . Derelict Logs Recovered 1 | . . . . 1 . Drone Launches . | . . . . . . Drone Recoveries . | . . . . . . Exploration | -11 -10 -9 -9 -7 -6 ------------- Run | Yrd Mat Mat Min Zio Pro Turns Passed 3952 | 59 76 484 102 2999 232 Spaces Moved 3072 | 59 80 236 54 2439 204 Core 32 | 32 . . . . . Treads . | . . . . . . Legs 469 | 8 . 47 54 360 . Wheels 2571 | 19 80 189 . 2079 204 Hover . | . . . . . . Flight . | . . . . . . Fastest Speed 50 | 50 80 95 190 105 105 Average Speed 116 | 69 86 115 190 117 105 Slowest Speed 190 | 120 95 190 190 190 105 Overloaded Moves . | . . . . . . Propulsion Burnouts . | . . . . . . Robots Hopped . | . . . . . . Cave-ins Triggered . | . . . . . . Exploration Rate (%) 33 | 4 24 21 21 92 37 Regions Visited 5 Branch Regions 3 Pre-discovered Areas . | . . . . . . Known Exits Taken . | . . . . . . Unknown Exits Taken 5 | 1 1 1 1 1 . Scrap Searched 2 | . . . . 2 . Spaces Dug . | . . . . . . Terrain Destroyed 106 | . . 47 . . 59 Melee . | . . . . . . Projectile 2 | . . . . . 2 AOE 104 | . . 47 . . 57 Terrain Rammed . | . . . . . . Walls Destroyed . | . . . . . . Machines Disabled . | . . . . . . Actions | -11 -10 -9 -9 -7 -6 --------- Run | Yrd Mat Mat Min Zio Pro Total 3410 | 74 86 413 54 2568 215 Wait 228 | . . 115 . 113 . Move 3067 | 58 79 235 53 2438 204 Hop . | . . . . . . Pick Up 35 | 8 4 13 . 9 1 Fast Attach 3 | 2 1 . . . . Attach 24 | 4 . 16 1 2 1 Detach 3 | . . 3 . . . Swap 14 | 2 1 3 . 6 2 Drop 1 | . 1 . . . . Fire 35 | . . 28 . . 7 Melee . | . . . . . . Ram . | . . . . . . Kick . | . . . . . . Crush . | . . . . . . Escape Stasis . | . . . . . . Rewire . | . . . . . . Trap . | . . . . . . Miscellaneous . | . . . . . . Route ------- -11/Scrapyard -10/Materials (discovered 2 exits: [*Mat] / [Min]) -9/Materials -9/Mines -7/Zion (discovered 2 exits: Dee / [*Pro]) -6/Proximity Caves History --------- Turn | Location | Event 8 | -11/Scrapyard | Discovered new exit (range 15) 60 | -11/Scrapyard | Entered Materials 117 | -10/Materials | Discovered new exit (range 9) 132 | -10/Materials | Discovered new exit (range 15) 136 | -10/Materials | Entered another Materials area 136 | -9/Materials | Evolved 2 slots: Utility x1, Weapon x1 469 | -9/Materials | Core integrity fell below 50% 501 | -9/Materials | Lost 10 parts (1p3n1u5w) 594 | -9/Materials | Discovered new exit (range 14) 620 | -9/Materials | Entered Mines 710 | -9/Mines | A Derelict revealed a hidden shortcut to a safe place 717 | -9/Mines | Build established: Mutant 722 | -9/Mines | Entered Zion 779 | -7/Zion | Identified exit to Deep Caves 1795 | -7/Zion | Received a visual enhancement algorithm 1989 | -7/Zion | Met Imprinter 2031 | -7/Zion | Imprinted 2033 | -7/Zion | Declared Zion's savior 2626 | -7/Zion | Found Prototype Special Weapon 2628 | -7/Zion | Found Prototype Special Weapon 2687 | -7/Zion | Identified RU-N14's Throwing Claymores (x2) 2936 | -7/Zion | Given the Hacking Drone Bay 2936 | -7/Zion | Found Prototype Device 2937 | -7/Zion | Identified Hacking Drone Bay 3658 | -7/Zion | Discovered new exit (range 14) 3721 | -7/Zion | Entered Proximity Caves 3721 | -6/Proximity Caves | Accompanied by 4 allies 3770 | -6/Proximity Caves | Attracted the attention of an 0b10 checkpoint 3773 | -6/Proximity Caves | Core integrity fell below 20% 3946 | -6/Proximity Caves | Attracted the attention of an 0b10 outpost 3953 | -6/Proximity Caves | Destroyed by L-41 Fighter with Axe Last Messages --------------- Imp. Ion Engine destroyed. Lgt. Armor Plating destroyed. Y-54 Guardian destroyed. RU-N14's Throwing Claymores expended. Chain reaction triggered in Lgt. Nuclear Core. S-27 Virus destroyed. Acquired 17 matter. Lgt. Treads self-destruct mechanism malfunctions. Gatling Laser fries itself beyond repair. The unstable cave ceiling collapses. Penetrated by Slug. Y-64 Sentinel: "DETECTED UNIDENTIFIED DERELICT." Penetrated by Slug. Y-64 Sentinel: "REQUESTING BACKUP." Penetrated by Slug. Wheel destroyed. L-41 Fighter knocked back. Com. Wheel destroyed. Slug penetrates G-50 Soldier. Map ----- +----------------------------------------------------+ | ???# ## ##?????? ?????????????????????????? | | ???# #?????? ????????????????????????? | | ???# #?????? ????????????? ??????????? | | ???###### #?????? ??????????? ??????????? | | ????????# ####?????? ??????????? #????????? | | ????????## #??????### ????####??# ?????????? | | ?????????## #?????? ????## #?? # ?????????? | | ??????????# #??###?# #???### #?? #?????????? | | ########### #### ### #????# #?? #?????????? | | # ## ## #?????# #??# #?????????? | | #?????# #??# #?????????? | | ##### # ##???## ##?# #?????????? | | ???????# ## ##### ### #?????????? | | ???????#??# #?????????? | | ??????????# ### #?????????? | | ??????????# ### ##?????????? | | ???????# # ###???????? | | ???????###### ######## ##??????? | | ????????????##### #??????# ### #??????? | | ????????????????# #??????# #?## #??????? | | ????????????????# # #??????# #??# ##??????? | | ????????????????# ### ####???# #??# ##???????? | | ????????????????####?#s#Y +???# #??# #########? | | ?????????????????????# gg#???# ##### ## | | ????????????????# ### l#####M# ### # | | ???????????????# @M M ## # | | ??????????????# ###;#### #### | | ?????????????# ????????# #?# #??? | | ????????????????????????###?#### ## #??? | | ???????????????????????????????## ##?## ##??? | | ????????????????????????????????# #????##???? | | ????????????????????????????????### #????????? | | ??????????????????????????????????#### #???????? | | ?????????????????????????????????????## ??????? | | ??????????????????????????????????????? ?????? | | ??????????????????????????????????????? ##????? | | ??????????????????????????????????????? ##?????? | | ??????????????????????????????????????? #??????? | | ??????????????????????????????????????? #??????? | | ???????????????????????????????????????####??????? | | ?????????????????????????????????????????????????? | | ?????????????????????????????????????????????????? | | ?????????????????????????????????????????????????? | | ?????????????????????????????????????????????????? | | ?????????????????????????????????????????????????? | | ?????????????????????????????????????????????????? | | ?????????????????????????????????????????????????? | | ?????????????????????????????????????????????????? | | ?????????????????????????????????????????????????? | | ?????????????????????????????????????????????????? | +----------------------------------------------------+ Best States ------------- Heat Dissipation 28 Energy Generation 12 Energy Capacity 265 Matter Stores 199 Matter Capacity 300 Sight Range 16 Robot Scan Range 14 Terrain Scan Density 10 ECM Strength 2 Armor Coverage 150 Propulsion Shielding 66 Evasion (%) 50 Item Schematics ----------------- Component Analysis Suite | -7/Zion | Archive Adv. Terrain Scanner | -7/Zion | Archive Kinecellerator | -7/Zion | Archive Robot Schematics ------------------ None Fabricated ------------ Nothing Alien Tech Used ----------------- None Achievements -------------- The One Challenges ------------ None Game ------ Seed DeliveryPointSpiker Manual? 0 Play Time 00:41:10 Cumulative 11.6 hours Start 2024.11.04 @ 20:51:56 End 2024.11.04 @ 22:29:56 Sessions 1 Manual Loads 0 Difficulty Rogue Special Mode None Game No. 23 Rogue 23 Adventurer 0 Explorer 0 Win Type - Total 0 Types 0/0/0/0/0/0/0/0/0 Lore% 8 Gallery% 16 Achievement% 15 Wizard Run 0 Options --------- Layout 1 ASCII 0 Keyboard 0 Movement Mouse Keybinds 0 Fullscreen 1 Font 24/Smallcaps Map View 50x35 Zoom Use 0% Tactical HUD 0 Map Filters NONE Filters NONE Steam 1 RUN: c2058da8-2c9e-4f5e-8822-212af36b3a0c